bitfinex/quotes_BTCUSD_20250225
["timestamp","ask_amount","ask_price","bid_price","bid_amount"]
[1740457937123,0.00189787,92230.0,92213.0,0.0825]
[1740457937307,0.00189787,92230.0,92214.0,0.03238696]
[1740457937308,0.216849,92230.0,92214.0,0.03238696]
[1740457937692,0.15,92229.0,92214.0,0.03238696]
[1740457937894,0.162662,92216.0,92214.0,0.03238696]
[1740457938041,0.162666,92213.0,92212.0,0.03238696]
[1740457938264,0.162666,92213.0,92212.0,0.03237966]
[1740457942887,0.162666,92213.0,92212.0,0.04293966]
[1740457944084,0.162666,92213.0,92212.0,0.03237966]
[1740457944265,0.211066,92213.0,92212.0,0.03237966]
[1740457944480,0.31267,92211.0,92210.0,0.03237966]
[1740457944686,0.16267,92211.0,92210.0,0.03236128]
[1740457944887,0.16456804,92211.0,92210.0,0.03236128]
[1740457945753,0.162705,92191.0,92190.0,0.5002]
[1740457945947,0.162705,92191.0,92190.0,0.04310917]
[1740457946382,0.162705,92191.0,92190.0,0.03254917]
[1740457946828,0.312705,92191.0,92190.0,0.03254917]
[1740457947316,0.312705,92191.0,92190.0,0.0002]
[1740457947749,0.362505,92191.0,92190.0,0.0002]
[1740457948642,0.162726,92179.0,92178.0,0.01056]
[1740457948845,0.162739,92172.0,92171.0,0.5]
[1740457949056,0.162739,92172.0,92171.0,0.5106]
[1740457949258,0.162739,92172.0,92171.0,0.5426277]
[1740457949876,0.1628683,92172.0,92171.0,0.5320277]
[1740457950399,0.1628683,92172.0,92171.0,0.5]
[1740457950594,0.0001293,92172.0,92163.0,0.01064]
[1740457950840,0.162753,92164.0,92163.0,0.01064]
[1740457951041,0.162753,92164.0,92163.0,0.04263722]
[1740457951241,0.17627531,92164.0,92163.0,0.04263722]
[1740457951417,0.32627531,92164.0,92163.0,0.03199722]
[1740457951619,0.16162344,92164.0,92156.0,0.03199722]
[1740457951821,0.01162344,92164.0,92161.0,0.01064]
[1740457952048,0.0001293,92172.0,92171.0,0.500849]
[1740457952227,0.0001293,92172.0,92171.0,0.53284622]
[1740457952432,0.0001293,92172.0,92171.0,0.54738707]
[1740457953038,0.0001293,92172.0,92171.0,0.62508707]
[1740457953242,0.0001293,92172.0,92171.0,0.94748707]
[1740457954095,0.1627,92195.0,92193.0,0.5]
[1740457954232,0.1627,92195.0,92194.0,0.03199722]
[1740457954438,0.17443757,92195.0,92194.0,0.03199722]
[1740457954660,0.17443757,92195.0,92183.0,0.01072]
[1740457954661,0.162718,92184.0,92183.0,0.01072]
[1740457954884,0.312718,92184.0,92183.0,0.01072]
[1740457958535,0.162739,92172.0,92171.0,0.011609]
[1740457958731,0.162739,92172.0,92171.0,0.323249]
[1740457958973,0.31463765,92172.0,92171.0,0.35524134]
[1740457959125,0.312739,92172.0,92171.0,0.35524134]
[1740457959330,0.359539,92172.0,92171.0,0.323249]
[1740457959593,0.359539,92172.0,92171.0,0.35524488]
[1740457960756,0.0468,92172.0,92171.0,0.323249]
[1740457960975,0.209539,92172.0,92171.0,0.323249]
[1740457963150,0.216955,92185.0,92171.0,0.323249]
[1740457963301,0.162716,92185.0,92183.0,0.5]
[1740457963746,0.16461444,92185.0,92183.0,0.5]
[1740457964161,0.162716,92185.0,92183.0,0.5]
[1740457967397,0.162716,92185.0,92184.0,0.032018]
[1740457970413,0.10668375,92229.0,92184.0,0.032018]
[1740457970571,0.162696,92196.0,92195.0,0.5]
[1740457970784,0.162696,92196.0,92195.0,0.854418]
[1740457972194,0.216892,92212.0,92208.0,0.5]
[1740457972449,0.216843,92233.0,92210.0,0.01454085]
[1740457972450,0.00012949,92211.0,92210.0,0.01454085]
[1740457972645,0.00012949,92211.0,92210.0,0.04655885]
[1740457972849,0.16279949,92211.0,92210.0,0.04655885]
[1740457973822,0.16279949,92211.0,92210.0,0.532018]
[1740457974004,0.16279949,92211.0,92210.0,0.042818]
[1740457974732,0.00012949,92211.0,92210.0,0.05735885]
[1740457974931,0.16279949,92211.0,92210.0,0.05735885]
[1740457975914,0.16279949,92211.0,92210.0,0.865218]
[1740457976904,0.16279949,92211.0,92210.0,0.354418]
[1740457977129,0.21269949,92211.0,92210.0,0.365218]
[1740457977587,0.21269949,92211.0,92210.0,0.354418]
[1740457980163,0.162721,92182.0,92181.0,0.751289]
[1740457980380,0.162721,92182.0,92181.0,0.35447453]
[1740457980846,0.162721,92182.0,92181.0,0.3224]
[1740457981052,0.00189846,92183.0,92173.0,0.5]
[1740457981053,0.00189846,92183.0,92174.0,0.3224]
[1740457981167,0.162733,92175.0,92174.0,0.3224]
[1740457981379,0.162733,92175.0,92174.0,0.85420636]
[1740457982134,0.162733,92175.0,92174.0,0.35420636]
[1740457982838,0.162733,92175.0,92174.0,0.34920636]
[1740457984416,0.162733,92175.0,92174.0,0.03180636]
[1740457985057,0.16463169,92175.0,92174.0,0.03180636]
[1740457985258,0.162737,92173.0,92172.0,0.09815004]
[1740457985613,0.312737,92173.0,92172.0,0.09815004]
[1740457985810,0.312737,92173.0,92133.0,0.032635]
[1740457985811,0.162785,92146.0,92144.0,0.01084]
[1740457985964,0.162785,92146.0,92145.0,0.03180804]
[1740457986195,0.162785,92146.0,92145.0,0.00043082]
[1740457986959,0.358285,92146.0,92145.0,0.00043082]
[1740457987139,0.36963323,92146.0,92145.0,0.00043082]
[1740457987559,0.312788,92144.0,92143.0,8.2e-07]
[1740457988841,0.312799,92138.0,92137.0,0.00080962]
[1740457992374,0.05727985,92146.0,92137.0,0.00080962]
[1740457992375,0.00043162,92146.0,92137.0,0.00080962]
[1740457992801,0.00043162,92146.0,92139.0,0.01454085]
[1740457993207,0.00043162,92146.0,92138.0,0.01454085]
[1740457993363,0.00043162,92146.0,92141.0,0.01454085]
[1740457993526,0.16279,92143.0,92141.0,0.01454085]
[1740457993739,0.162797,92139.0,92138.0,0.01454085]
[1740457994169,0.162797,92139.0,92137.0,0.00080962]
[1740457994379,0.162797,92139.0,92138.0,0.01092]
[1740457996241,0.312797,92139.0,92138.0,0.01092]
[1740457996416,0.15,92138.0,92137.0,0.00080962]
[1740457996641,0.15189967,92138.0,92137.0,0.00080962]
[1740457997528,0.00189967,92138.0,92137.0,0.00080962]
[1740457998136,0.162797,92139.0,92137.0,0.00080962]
[1740457998341,0.0782,92161.0,92137.0,0.00080962]
[1740457998544,0.217017,92159.0,92139.0,0.5]
[1740457998689,0.162782,92148.0,92139.0,0.5]
[1740457998915,0.162795,92141.0,92139.0,0.5]
[1740457999143,0.162787,92145.0,92138.0,0.01454085]
[1740457999345,0.162789,92144.0,92138.0,0.01454085]
[1740457999644,0.217038,92150.0,92138.0,0.01454085]
[1740458000194,0.01156139,92157.0,92141.0,0.01454085]
[1740458000405,0.21703,92153.0,92141.0,0.01454085]
[1740458000685,0.217036,92151.0,92141.0,0.01454085]
[1740458000887,0.01156139,92157.0,92141.0,0.01454085]
[1740458001098,0.01156139,92157.0,92145.0,0.17732685]
[1740458001302,0.00804996,92171.0,92145.0,0.17732685]
[1740458001502,0.0499,92176.0,92145.0,0.17732685]
[1740458001712,0.05785665,92176.0,92145.0,0.5263555]
[1740458001909,0.216992,92170.0,92145.0,0.5263555]
[1740458002119,0.00213082,92146.0,92145.0,0.5263555]
[1740458002326,0.00213082,92146.0,92145.0,0.6059555]
[1740458002530,0.00213082,92146.0,92145.0,0.8572445]
[1740458002741,0.00213082,92146.0,92145.0,0.8772445]
[1740458002966,0.00213082,92146.0,92145.0,0.89178712]
[1740458003388,0.00213082,92146.0,92145.0,1.3871445]
[1740458003599,0.00213082,92146.0,92145.0,1.3671445]
[1740458003793,0.00213082,92146.0,92145.0,1.8671445]
[1740458004018,0.00213082,92146.0,92145.0,1.2153585]
[1740458004239,0.00213082,92146.0,92145.0,1.2043585]
[1740458004447,0.00213082,92146.0,92145.0,0.34902865]
[1740458004576,0.00213082,92146.0,92145.0,0.3284]
[1740458004774,0.00213082,92146.0,92145.0,0.011]
[1740458005254,0.00403007,92146.0,92145.0,0.011]
[1740458005479,0.05343007,92146.0,92145.0,0.011]
[1740458008151,0.00213082,92146.0,92145.0,0.011]
[1740458011221,0.16491582,92146.0,92145.0,0.011]
[1740458011433,0.16491582,92146.0,92145.0,0.04269957]
[1740458012324,0.16491582,92146.0,92145.0,0.05724042]
[1740458013605,0.00213082,92146.0,92145.0,0.05724042]
[1740458016315,0.00213082,92146.0,92145.0,0.56724042]
[1740458017658,0.00213082,92146.0,92145.0,1.06724042]
[1740458018250,0.00213082,92146.0,92145.0,0.55724042]
[1740458018424,0.00213082,92146.0,92145.0,0.67164042]
[1740458018635,0.00213082,92146.0,92145.0,0.55724042]
[1740458018815,0.00213082,92146.0,92145.0,0.72002642]
[1740458020224,0.00213082,92146.0,92145.0,1.23002642]
[1740458020449,0.00213082,92146.0,92145.0,1.79871542]
[1740458021316,0.00213082,92146.0,92145.0,1.28871542]
[1740458023268,0.00213082,92146.0,92145.0,1.12592942]
[1740458023477,0.00213082,92146.0,92145.0,1.11492942]
[1740458023683,0.00213082,92146.0,92145.0,1.12592942]
[1740458023857,0.00213082,92146.0,92145.0,1.28871542]
[1740458024056,0.00213082,92146.0,92145.0,1.27771542]
[1740458024275,0.00213082,92146.0,92145.0,1.28871542]
[1740458025226,0.00213082,92146.0,92145.0,1.79871542]
[1740458028515,0.00213082,92146.0,92145.0,1.91311542]
[1740458030274,0.00213082,92146.0,92145.0,1.40311542]
[1740458031324,0.00213082,92146.0,92145.0,1.28871542]
[1740458033198,0.00213082,92146.0,92145.0,1.12592942]
[1740458033395,0.00213082,92146.0,92145.0,1.28871542]
[1740458034110,0.217004,92164.0,92159.0,0.01454085]
[1740458034285,0.217004,92164.0,92161.0,0.01454085]
[1740458034512,0.162756,92162.0,92161.0,0.01454085]
[1740458034723,0.162756,92162.0,92161.0,0.04638001]
[1740458035226,0.216978,92176.0,92161.0,0.04638001]
[1740458035449,0.16275,92166.0,92163.0,0.01454085]
[1740458035660,0.16275,92166.0,92164.0,0.03183916]
[1740458035878,0.16275,92166.0,92165.0,0.01092]
[1740458036084,0.16275,92166.0,92165.0,0.04275916]
[1740458036219,0.162747,92168.0,92165.0,0.04275916]
[1740458036420,0.162749,92166.0,92165.0,0.01092]
[1740458037499,0.162749,92166.0,92165.0,0.0427578]
[1740458037703,0.162736,92174.0,92166.0,0.01454085]
[1740458037858,0.216914,92203.0,92170.0,0.01454085]
[1740458038059,0.0791985,92188.0,92172.0,0.01454085]
[1740458038262,0.0018985,92191.0,92174.0,0.01454085]
[1740458038489,0.0018985,92191.0,92176.0,0.01454085]
[1740458038648,0.216937,92193.0,92177.0,0.0318378]
[1740458039023,0.216957,92185.0,92177.0,0.0318378]
[1740458039158,0.162721,92183.0,92177.0,0.0318378]
[1740458039683,0.162728,92178.0,92177.0,0.04637865]
[1740458040062,0.216952,92186.0,92177.0,0.04637865]
[1740458040264,0.08668375,92270.0,92183.0,0.216959]
[1740458040265,0.1263,92203.0,92183.0,0.216959]
[1740458040469,0.1263,92203.0,92173.0,0.3174]
[1740458040470,0.0483,92203.0,92192.0,0.5]
[1740458040672,0.0483,92203.0,92193.0,0.3492378]
[1740458040971,0.0483,92203.0,92194.0,0.62594765]
[1740458041195,0.0016986,92210.0,92196.0,0.23146985]
[1740458041540,0.0016986,92210.0,92203.0,0.01454085]
[1740458041674,0.162682,92205.0,92204.0,0.0318378]
[1740458041893,0.00189794,92205.0,92204.0,0.0427178]
[1740458042314,0.216906,92206.0,92204.0,0.01088]
[1740458042651,0.07829816,92205.0,92204.0,0.01088]
[1740458042792,0.162693,92198.0,92197.0,0.3174]
[1740458043039,0.25127503,92198.0,92197.0,0.3174]
[1740458043245,0.24937675,92198.0,92197.0,0.3174]
[1740458043447,0.08668375,92198.0,92183.0,0.3174]
[1740458043646,0.288618,92184.0,92183.0,0.3174]
[1740458043846,0.288618,92184.0,92183.0,0.34922356]
[1740458044054,0.0462,92184.0,92183.0,0.34922356]
[1740458044247,0.0462,92195.0,92183.0,0.51194256]
[1740458044464,0.0462,92195.0,92185.0,0.5]
[1740458044663,0.0462,92195.0,92186.0,0.03182356]
[1740458045298,0.162685,92203.0,92187.0,0.01454085]
[1740458045501,0.162682,92204.0,92189.0,0.23148585]
[1740458045707,0.262504,92207.0,92192.0,0.01454085]
[1740458045907,0.0456,92207.0,92197.0,0.716926]
[1740458046090,0.0456,92207.0,92199.0,0.01454085]
[1740458046286,0.00189798,92216.0,92201.0,0.01454085]
[1740458046488,0.00189798,92216.0,92202.0,0.34922356]
[1740458046691,0.00189798,92216.0,92203.0,0.03182356]
[1740458046692,0.162682,92204.0,92203.0,0.03182356]
[1740458046879,0.16457996,92204.0,92203.0,0.03182356]
[1740458047079,0.162688,92201.0,92200.0,0.03182356]
[1740458047328,0.162702,92193.0,92192.0,0.26582985]
[1740458047494,0.162702,92193.0,92192.0,0.30861952]
[1740458047696,0.162702,92193.0,92192.0,0.36018967]
[1740458048013,0.210802,92193.0,92192.0,0.36018967]
[1740458048592,0.289602,92193.0,92192.0,0.03182967]
[1740458048794,0.162719,92183.0,92182.0,0.01096]
[1740458049069,0.216955,92185.0,92182.0,0.03182967]
[1740458049195,0.162737,92173.0,92172.0,0.01096]
[1740458049550,0.216979,92175.0,92172.0,0.0427935]
[1740458049551,0.162734,92175.0,92172.0,0.0427935]
[1740458049699,0.162735,92174.0,92173.0,0.0318335]
[1740458049896,0.216945,92189.0,92173.0,0.0318335]
[1740458050141,0.162734,92175.0,92173.0,0.0318335]
[1740458051530,0.162733,92176.0,92173.0,0.0318335]
[1740458051757,0.162734,92175.0,92173.0,0.0318335]
[1740458052138,0.162734,92175.0,92174.0,0.0427935]
[1740458053133,0.162734,92175.0,92174.0,0.0318335]
[1740458053329,0.16274,92171.0,92170.0,0.01092]
[1740458053633,0.16274,92171.0,92170.0,0.04276126]
[1740458055645,0.1646387,92171.0,92170.0,0.04276126]
[1740458055844,0.16274,92171.0,92170.0,0.04276126]
[1740458063074,0.16274,92171.0,92170.0,0.04361056]
[1740458064592,0.10040919,92191.0,92170.0,0.04361056]
[1740458064852,0.00189872,92190.0,92178.0,0.5]
[1740458065021,0.00189872,92190.0,92179.0,0.03184126]
[1740458065022,0.162725,92180.0,92179.0,0.03184126]
[1740458065169,0.216945,92189.0,92171.0,0.03184126]
[1740458065370,0.162739,92172.0,92171.0,0.03184126]
[1740458065836,0.152739,92172.0,92171.0,0.03184126]
[1740458066071,0.200439,92172.0,92171.0,0.03184126]
[1740458066188,0.28383773,92172.0,92171.0,0.03184126]
[1740458066390,0.281939,92172.0,92171.0,0.03184126]
[1740458066609,0.16274,92171.0,92170.0,0.0008493]
[1740458066830,0.16463894,92171.0,92170.0,0.0008493]
[1740458067078,0.16463894,92171.0,92170.0,0.03269323]
[1740458068850,0.16274,92171.0,92170.0,0.03269323]
[1740458069695,0.16463882,92171.0,92170.0,0.03269323]
[1740458077497,0.0477,92172.0,92170.0,0.03269323]
[1740458077740,0.0016986,92173.0,92171.0,0.34924393]
[1740458077944,0.0016986,92173.0,92172.0,0.03184393]
[1740458078143,0.1644356,92173.0,92172.0,0.34924393]
[1740458078347,0.0016986,92173.0,92172.0,0.34924393]
[1740458078554,0.0016986,92173.0,92172.0,0.51198293]
[1740458079106,0.0016986,92173.0,92172.0,0.34924393]
[1740458079311,0.1644356,92173.0,92172.0,0.34924393]
[1740458081399,0.0016986,92173.0,92172.0,0.34924393]
[1740458081867,0.1644356,92173.0,92172.0,0.34924393]
[1740458082018,0.0016986,92173.0,92172.0,0.34924393]
[1740458082394,0.1644356,92173.0,92172.0,0.34924393]
[1740458083203,0.2118356,92173.0,92172.0,0.34924393]
[1740458083830,0.2872356,92173.0,92172.0,0.34924393]
[1740458084510,0.2118356,92173.0,92172.0,0.34924393]
[1740458088655,0.2118356,92173.0,92172.0,0.03184393]
[1740458088855,0.0490986,92173.0,92170.0,0.0008493]
[1740458089185,0.1646379,92172.0,92171.0,0.03191273]
[1740458089592,0.162739,92172.0,92171.0,0.03191273]
[1740458089767,0.16463783,92172.0,92171.0,0.03191273]
[1740458089973,0.162739,92172.0,92171.0,0.03191273]
[1740458090437,0.16463781,92172.0,92171.0,0.03191273]
[1740458091491,0.162739,92172.0,92171.0,0.03191273]
[1740458092293,0.16463782,92172.0,92171.0,0.03191273]
[1740458096533,0.162739,92172.0,92171.0,0.03191273]
[1740458097817,0.16463782,92172.0,92171.0,0.03191273]
[1740458098052,0.162739,92172.0,92171.0,0.03191273]
[1740458098503,0.16463783,92172.0,92171.0,0.03191273]
[1740458099120,0.162739,92172.0,92171.0,0.03191273]
[1740458099253,0.0016986,92173.0,92171.0,0.03191273]
[1740458099466,0.0016986,92173.0,92171.0,0.03276153]
[1740458099688,0.0016986,92173.0,92172.0,0.03191273]
[1740458100092,0.1644356,92173.0,92172.0,0.03191273]
[1740458100845,0.2094356,92173.0,92172.0,0.03191273]
[1740458101602,0.1644356,92173.0,92172.0,0.03191273]
[1740458104650,0.4359356,92173.0,92172.0,0.03191273]
[1740458106997,0.3601356,92173.0,92172.0,0.03191273]
[1740458111508,0.3601356,92173.0,92172.0,0.03276153]
[1740458112054,0.36813777,92173.0,92172.0,0.03276153]
[1740458112274,0.0016986,92173.0,92172.0,0.03276153]
[1740458113153,0.0472,92195.0,92177.0,0.5]
[1740458113358,0.00829344,92193.0,92178.0,0.03191273]
[1740458113566,0.216916,92202.0,92178.0,0.03191273]
[1740458113567,0.216917,92202.0,92191.0,0.5]
[1740458113793,0.00012949,92202.0,92192.0,0.03191273]
[1740458113972,0.1627,92194.0,92192.0,0.03191273]
[1740458115133,0.1627,92194.0,92193.0,0.02034606]
[1740458115335,0.1627,92194.0,92193.0,0.05225879]
[1740458118179,0.162732,92176.0,92175.0,0.01056]
[1740458118378,0.16463067,92176.0,92175.0,0.01056]
[1740458118621,0.162732,92176.0,92175.0,0.01056]
[1740458119010,0.162732,92176.0,92175.0,0.04242817]
[1740458123444,0.162732,92176.0,92175.0,0.04327677]
[1740458124163,0.162732,92176.0,92175.0,0.03271677]
[1740458124539,0.16463062,92176.0,92175.0,0.03271677]
[1740458124744,0.162732,92176.0,92175.0,0.03271677]
[1740458125636,0.162732,92176.0,92175.0,0.0008486]
[1740458127649,0.208232,92176.0,92175.0,0.0008486]
[1740458128144,0.439932,92176.0,92175.0,0.0008486]
[1740458128344,0.439932,92176.0,92172.0,0.0008488]
[1740458128345,0.312737,92173.0,92172.0,8e-07]
[1740458130962,0.312737,92173.0,92170.0,0.0008493]
[1740458130963,0.31274,92171.0,92170.0,9e-07]
[1740458131405,0.36264,92171.0,92170.0,9e-07]
[1740458131774,0.162795,92140.0,92139.0,0.0008496]
[1740458131955,0.162795,92140.0,92139.0,0.03282709]
[1740458132159,0.16469442,92140.0,92139.0,0.03282709]
[1740458132361,0.162795,92140.0,92139.0,0.0009789]
[1740458132786,0.312795,92140.0,92139.0,0.0009789]
[1740458133421,0.32571295,92140.0,92139.0,0.0009789]
[1740458133748,0.312795,92140.0,92139.0,0.0009789]
[1740458136060,0.162795,92140.0,92139.0,0.0009789]
[1740458136185,0.16469454,92140.0,92139.0,0.0009789]
[1740458137726,0.162795,92140.0,92139.0,0.0009789]
[1740458138922,0.312795,92140.0,92139.0,0.0009789]
[1740458141367,0.31236356,92140.0,92139.0,0.0009789]
[1740458141769,0.39176356,92140.0,92139.0,0.0009789]
[1740458143661,0.44106356,92140.0,92139.0,0.0009789]
[1740458144352,0.52858092,92140.0,92139.0,0.0009789]
[1740458144556,0.312799,92138.0,92137.0,5.2e-07]
[1740458145120,0.15,92138.0,92137.0,5.2e-07]
[1740458145322,0.31469874,92138.0,92137.0,5.2e-07]
[1740458145541,0.312799,92138.0,92137.0,5.2e-07]
[1740458145744,0.439099,92138.0,92137.0,5.2e-07]
[1740458148988,0.076,92136.0,92130.0,0.09726824]
[1740458149189,0.226,92131.0,92130.0,2.4e-07]
[1740458149389,0.226,92131.0,92116.0,0.000849]
[1740458149390,0.1979,92130.0,92116.0,0.000849]
[1740458149563,0.0475,92128.0,92116.0,0.000849]
[1740458150384,0.00190021,92127.0,92116.0,0.000849]
[1740458153665,0.00798559,92118.0,92116.0,0.000849]
[1740458153896,0.00190018,92117.0,92116.0,0.000849]
[1740458157918,0.08040018,92117.0,92116.0,0.000849]
[1740458158114,0.28833876,92117.0,92116.0,0.000849]
[1740458158355,0.2776,92117.0,92116.0,0.000849]
[1740458161840,0.1991,92117.0,92116.0,0.000849]
[1740458162064,0.20100035,92117.0,92116.0,0.000849]
[1740458162423,0.1991,92117.0,92116.0,0.000849]
[1740458162626,0.0484,92126.0,92116.0,0.000849]
[1740458162755,0.0019001,92125.0,92116.0,0.000849]
[1740458162985,0.0484,92126.0,92116.0,0.000849]
[1740458163191,0.0484,92137.0,92117.0,0.079]
[1740458163397,0.0484,92137.0,92121.0,0.5]
[1740458163716,0.00189989,92136.0,92122.0,0.01454085]
[1740458163889,0.00189989,92136.0,92121.0,0.5]
[1740458164097,0.0768,92135.0,92116.0,0.000849]
[1740458164296,0.0482,92133.0,92116.0,0.000849]
[1740458164472,0.00189995,92132.0,92116.0,0.000849]
[1740458164980,0.0016982,92138.0,92122.0,0.077]
[1740458165173,0.00189971,92137.0,92123.0,0.01454085]
[1740458165455,0.0016982,92138.0,92125.0,0.01454085]
[1740458165720,0.0016982,92138.0,92131.0,0.5]
[1740458165919,0.0016982,92138.0,92132.0,0.01454085]
[1740458166456,0.0016982,92138.0,92136.0,0.162802]
[1740458166659,0.0016982,92138.0,92137.0,0.04636488]
[1740458167260,0.0016982,92138.0,92137.0,0.12726488]
[1740458167665,0.0016982,92138.0,92137.0,0.17356488]
[1740458168249,0.0016982,92138.0,92137.0,0.74225388]
[1740458168461,0.0016982,92138.0,92137.0,1.24225388]
[1740458168673,0.0016982,92138.0,92137.0,1.20655388]
[1740458168880,0.0016982,92138.0,92137.0,0.70655388]
[1740458169088,0.0016982,92138.0,92137.0,0.44466488]
[1740458169499,0.0016982,92138.0,92137.0,0.36376488]
[1740458169705,0.0016982,92138.0,92137.0,0.04636488]
[1740458169913,0.0016982,92138.0,92136.0,0.0106]
[1740458170318,0.00189951,92137.0,92134.0,0.09695774]
[1740458172554,0.0016982,92138.0,92134.0,0.09695774]
[1740458173166,0.0016982,92138.0,92130.0,0.5]
[1740458173318,0.00189949,92137.0,92130.0,0.5]
[1740458173525,0.00189949,92137.0,92131.0,0.03181862]
[1740458174342,0.00189949,92137.0,92129.0,0.09695774]
[1740458174546,0.00189949,92137.0,92130.0,0.03182202]
[1740458174749,0.00189949,92137.0,92131.0,0.01454085]
[1740458174949,0.0016982,92138.0,92132.0,0.03182202]
[1740458176645,0.0016982,92138.0,92133.0,0.01454085]
[1740458176985,0.0016982,92138.0,92135.0,0.01454085]
[1740458177190,0.0016982,92138.0,92137.0,0.01454085]
[1740458177390,0.0016982,92138.0,92137.0,0.04636287]
[1740458178305,0.0016982,92138.0,92137.0,0.36376287]
[1740458179026,0.0016982,92138.0,92137.0,0.86376287]
[1740458179395,0.0016982,92138.0,92137.0,0.87692373]
[1740458179731,0.0016982,92138.0,92137.0,0.86376287]
[1740458180847,0.0016982,92138.0,92137.0,0.36376287]
[1740458181043,0.0016982,92138.0,92137.0,0.86376287]
[1740458183379,0.0016982,92138.0,92137.0,1.11505187]
[1740458183581,0.0016982,92138.0,92137.0,1.12569187]
[1740458184190,0.0016982,92138.0,92137.0,1.11505187]
[1740458184390,0.0016982,92138.0,92137.0,1.12569187]
[1740458186593,0.0016982,92138.0,92137.0,1.20619187]
[1740458188344,0.0016982,92138.0,92137.0,1.20615187]
[1740458190732,0.15,92172.0,92155.0,0.01454085]
[1740458190942,0.00188298,92171.0,92155.0,0.01454085]
[1740458191341,0.00188298,92171.0,92159.0,0.00588993]
[1740458191558,0.00188298,92171.0,92160.0,0.01454085]
[1740458192378,0.00012949,92173.0,92160.0,0.01454085]
[1740458192653,0.00201247,92173.0,92160.0,0.01454085]
[1740458192877,0.00012949,92173.0,92160.0,0.01454085]
[1740458193076,0.00201247,92173.0,92160.0,0.01454085]
[1740458193297,0.00012949,92173.0,92160.0,0.01454085]
[1740458193513,0.00201247,92173.0,92160.0,0.01454085]
[1740458193825,0.0454,92172.0,92160.0,0.01454085]
[1740458194056,0.00188298,92171.0,92160.0,0.01454085]
[1740458194405,0.00188298,92171.0,92156.0,0.3174]
[1740458194406,0.00358138,92171.0,92156.0,0.3174]
[1740458195361,0.00358138,92171.0,92157.0,0.01454085]
[1740458198057,0.07030644,92176.0,92157.0,0.01454085]
[1740458198298,0.07030644,92176.0,92157.0,0.01467034]
[1740458199715,0.07030644,92176.0,92157.0,0.00475034]
[1740458199936,0.07030644,92176.0,92157.0,0.00012949]
[1740458200723,0.0216972,92194.0,92157.0,0.00012949]
[1740458200923,0.03580727,92194.0,92157.0,0.00012949]
[1740458201120,0.1292,92189.0,92162.0,0.00588993]
[1740458202348,0.1292,92189.0,92163.0,0.0832]
[1740458202852,0.0016972,92194.0,92177.0,0.00588993]
[1740458203053,0.01454464,92194.0,92177.0,0.3174]
[1740458205191,0.04563011,92194.0,92177.0,0.3174]
[1740458205749,0.08668375,92193.0,92177.0,0.3174]
[1740458205948,0.2257,92192.0,92177.0,0.3174]
[1740458206157,0.197,92191.0,92177.0,0.3174]
[1740458206815,0.0016972,92190.0,92177.0,0.3174]
[1740458207670,0.0016972,92190.0,92172.0,0.0794]
[1740458208195,0.0016972,92190.0,92169.0,0.01454085]
[1740458208430,0.0016972,92190.0,92165.0,0.0753]
[1740458208633,0.0016972,92190.0,92167.0,0.50588993]
[1740458208841,0.0016972,92190.0,92161.0,0.01454085]
[1740458209067,0.082,92189.0,92162.0,0.0318773]
[1740458209234,0.082,92189.0,92163.0,0.00588993]
[1740458209439,0.1516972,92190.0,92167.0,0.00588993]
[1740458209852,0.1516972,92190.0,92168.0,0.03188573]
[1740458210074,0.0016972,92190.0,92172.0,0.00588993]
[1740458210545,0.0016972,92190.0,92170.0,0.5]
[1740458210546,0.0016972,92190.0,92177.0,0.00588993]
[1740458210692,0.0016972,92190.0,92178.0,0.03189889]
[1740458211102,0.0016972,92190.0,92177.0,0.00588993]
[1740458211441,0.0016972,92190.0,92178.0,0.03189889]
[1740458211761,0.0016972,92190.0,92179.0,0.03189889]
[1740458212009,0.0016972,92190.0,92180.0,0.03189889]
[1740458212225,0.0016972,92190.0,92177.0,0.03189889]
[1740458212405,0.0016972,92190.0,92178.0,0.03189889]
[1740458212614,0.0016972,92190.0,92179.0,0.03189889]
[1740458212837,0.0016972,92190.0,92177.0,0.03189889]
[1740458213019,0.0016972,92190.0,92178.0,0.03189889]
[1740458213223,0.0016972,92190.0,92177.0,0.03189889]
[1740458213419,0.0016972,92190.0,92178.0,0.03189889]
[1740458213623,0.0016972,92190.0,92177.0,0.03189889]
[1740458213967,0.0016972,92190.0,92178.0,0.03189889]
[1740458214178,0.0016972,92190.0,92179.0,0.00588993]
[1740458214539,0.0016972,92190.0,92180.0,0.03189889]
[1740458214734,0.0016972,92190.0,92177.0,0.00588993]
[1740458215094,0.0016972,92190.0,92178.0,0.03189889]
[1740458215234,0.0016972,92190.0,92174.0,0.03189889]
[1740458216061,0.077,92189.0,92174.0,0.03189889]
[1740458216235,0.0455,92188.0,92174.0,0.03189889]
[1740458218885,0.05937418,92188.0,92174.0,0.03189889]
[1740458219112,0.0455,92188.0,92174.0,0.03274749]
[1740458219289,0.0455,92188.0,92175.0,0.03189889]
[1740458219912,0.1955,92188.0,92175.0,0.03189889]
[1740458220130,0.1955,92188.0,92174.0,0.0008486]
[1740458220131,0.08668375,92177.0,92174.0,4.9e-07]
[1740458220353,0.08668375,92177.0,92133.0,0.0471]
[1740458220354,0.1225,92166.0,92157.0,5.8e-07]
[1740458220554,0.08668375,92160.0,92157.0,5.8e-07]
[1740458220979,0.2331,92159.0,92157.0,5.8e-07]
[1740458221212,0.2161,92158.0,92157.0,5.8e-07]
[1740458221439,0.23021007,92158.0,92157.0,5.8e-07]
[1740458221653,0.27020945,92158.0,92157.0,5.8e-07]
[1740458221881,0.23021007,92158.0,92157.0,5.8e-07]
[1740458222311,0.08021007,92158.0,92157.0,5.8e-07]
[1740458222732,0.01411007,92152.0,92120.0,0.3174]
[1740458222948,0.01411007,92152.0,92116.0,0.000849]
[1740458222949,0.00834237,92145.0,92116.0,0.000849]
[1740458223164,0.2284,92138.0,92116.0,0.000849]
[1740458223601,0.1983,92137.0,92116.0,0.000849]
[1740458223805,0.02,92134.0,92116.0,0.000849]
[1740458224478,0.1983,92137.0,92103.0,0.00476056]
[1740458224683,0.0483,92137.0,92103.0,0.00476056]
[1740458224893,0.08816232,92137.0,92124.0,0.0975913]
[1740458225098,0.06107625,92137.0,92124.0,0.0975913]
[1740458225604,0.01277625,92137.0,92124.0,0.0975913]
[1740458226063,0.047,92149.0,92124.0,0.0975913]
[1740458226266,0.045,92160.0,92128.0,0.162816]
[1740458226487,0.045,92160.0,92124.0,0.0975913]
[1740458226488,0.01290629,92149.0,92134.0,0.00476056]
[1740458226688,0.045,92160.0,92134.0,0.00476056]